Cogmind - Beta 11.1 @@@ ROGUE MODE // 2022.04.23 @ 00:20:40 Player: Olga Result: Destroyed by S-10 Pest with Light Assault Rifle Performance ------------- Evolutions (2) 1000 Regions Visited (5) 1000 Robots Destroyed (25) 125 Value Destroyed (746) 746 Prototype IDs (24) 480 Alien Tech Used (0) 0 Bonus (300) 300 TOTAL SCORE: 3651 Bonus ------- Aligned with FarCom 300 Cogmind --------- Core Integrity 0/550 Matter 300/300 Energy 100/100 System Corruption 0% Temperature Cool (0) Movement Treading (145) Location -8/Materials Parts ------- > --- POWER (1) -------- (None) > --- PROPULSION (3) --- Advanced Treads > --- UTILITY (5) ------ Signal Interpreter Hacking Suite > --- WEAPON (2) ------- (None) > --- INVENTORY (5) ---- Advanced Visual Processing Unit Utility Shielding Hacking Suite Supersonic Drone Bay (1/1) Peak State ------------ > --- POWER ------------ Light Nuclear Core > --- PROPULSION ------- Armored Wheel Armored Wheel Aerolev Unit > --- UTILITY ---------- Improved Heat Sink Small Storage Unit Signal Interpreter Utility Shielding Hacking Suite > --- WEAPON ----------- Beamcaster Light Assault Rifle > --- INVENTORY -------- Improved Light Armor Plating Hacking Suite Supersonic Drone Bay [Rating: 27] Favorites ----------- Power Light Ion Engine Engine Light Ion Engine Power Core Light Nuclear Core Propulsion Flight Unit Treads Advanced Treads Leg Aluminum Leg Wheel Armored Wheel Hover Unit Aerolev Unit Flight Unit Flight Unit Utility Signal Interpreter Device Sensor Array Storage Small Storage Unit Processor Signal Interpreter Hackware Hacking Suite Protection Utility Shielding Weapon Light Assault Rifle Energy Gun Beamcaster Ballistic Gun Light Assault Rifle Launcher Rocket Launcher Build | -11 -10 -10 -10 -9 -8 ------- Run | Scr Mat Min Exi Min Mat Slots Evolved 4 | . . . . . 4 Power . | . . . . . . Propulsion 1 | . . . . . 1 Utility 3 | . . . . . 3 Weapon . | . . . . . . Parts Attached 42 | . 14 6 . 8 14 Power 5 | . 3 1 . . 1 Engine 4 | . 3 1 . . . Core 1 | . . . . . 1 Reactor . | . . . . . . Propulsion 14 | . 4 3 . 1 6 Treads 1 | . . . . . 1 Leg 2 | . 1 . . . 1 Wheel 3 | . 1 . . . 2 Hover 1 | . . . . . 1 Flight 7 | . 2 3 . 1 1 Utility 10 | . 3 . . 2 5 Device 4 | . 1 . . 2 1 Storage 1 | . . . . . 1 Processor 1 | . 1 . . . . Hackware 1 | . . . . . 1 Protection 3 | . 1 . . . 2 Artifact . | . . . . . . Weapon 13 | . 4 2 . 5 2 Energy Gun 3 | . . . . 1 2 Energy Cannon . | . . . . . . Ballistic Gun 8 | . 3 2 . 3 . Ballistic Cannon . | . . . . . . Launcher 2 | . 1 . . 1 . Special Weapon . | . . . . . . Impact Weapon . | . . . . . . Slashing Weapon . | . . . . . . Piercing Weapon . | . . . . . . Special Melee Weapon . | . . . . . . Unidentified Prototypes 1 | . . . . . 1 Parts Lost 16 | . 4 1 . . 11 Power 4 | . 1 1 . . 2 Propulsion 5 | . 2 . . . 3 Utility 3 | . . . . . 3 Weapon 4 | . 1 . . . 3 Highest Loss Streak 5 | . 2 1 . . 5 To Critical Strikes . | . . . . . . Average Slot Usage (%) 89 | . 85 99 100 98 80 Engine 9 | . 12 13 14 14 2 Core 1 | . . . . . 4 Leg 4 | . 13 . . . . Wheel 3 | . 2 . . . 9 Flight 16 | . 11 28 28 28 7 Device 9 | . 5 14 14 14 8 Storage 5 | . 8 . . . 7 Processor 8 | . . 14 14 14 9 Hackware 2 | . . . . . 8 Protection 3 | . 1 . . . 7 Energy Gun 2 | . . . . . 7 Ballistic Gun 20 | . 26 28 28 22 7 Naked Turns . | . . . . . . Heaviest Build 22 | 11 12 6 6 9 22 Greatest Support 24 | 20 20 8 8 8 24 Greatest Overweight (x) 2 | . 1 . . 1 2 Average Overweight (x) . | . . . . . . Largest Inventory Capacity 8 | 8 8 5 5 5 8 Average Capacity 6 | 8 6 5 5 5 7 Most Carried 8 | 6 8 5 5 5 5 Average Carried 4 | 6 6 4 4 4 3 Final Capacity 8 | 8 5 5 5 5 5 Final Carried 6 | 6 5 5 5 4 4 Class Distribution -------------------- 44% | Mutant 42% | Scavenger-Mutant 13% | Scavenger-Scout Dominant Class ---------------- Mutant | -10/Materials Mutant | -10/Mines Scavenger-Mutant | -10/Exiles Scavenger-Scout | -9/Mines Scavenger-Mutant | -8/Materials Resources | -11 -10 -10 -10 -9 -8 ----------- Run | Scr Mat Min Exi Min Mat Matter Collected 739 | 200 212 99 . 112 116 Remotely . | . . . . . . Salvage Created 733 | . 358 92 . 8 275 Parts 49 | . 31 8 . 2 8 Haulers Intercepted 1 | . 1 . . . . Recyclers Shooed 4 | . 3 . . . 1 Parts Field Recycled . | . . . . . . Retrieved Matter . | . . . . . . Parts Self-Destructed . | . . . . . . Prevented . | . . . . . . Kills | -11 -10 -10 -10 -9 -8 ------- Run | Scr Mat Min Exi Min Mat Combat Hostiles Destroyed 23 | . 11 4 . 3 5 Guns 16 | . 8 4 . . 4 AOE 6 | . 3 . . 3 . Classes Destroyed 5 | . 4 . . . 1 Hauler 1 | . 1 . . . . Watcher 1 | . 1 . . . . Swarmer 9 | . 3 3 . 3 . Grunt 13 | . 8 1 . . 4 Sentry 1 | . . . . . 1 Best Kill Streak 6 | . 6 2 . 3 2 Combat Bots Only 6 | . 6 2 . 3 2 Max Kills in Single Turn 2 | . 2 1 . 2 1 Gunslinging . | . . . . . . Exploded 2 | . 2 . . 2 . Melee . | . . . . . . Uniques/NPCs Destroyed . | . . . . . . Combat | -11 -10 -10 -10 -9 -8 -------- Run | Scr Mat Min Exi Min Mat Damage Taken 2258 | . 619 182 . 50 1407 Core 733 | . 110 44 . 20 559 Absorbed by Shields . | . . . . . . Redirected to Shielding 13 | . . . . . 13 Core Remaining (%) 65 | 100 . . . 30 . Volleys Fired 93 | . 42 15 . 2 34 Largest 2 | . 2 2 . 1 2 Hottest 131 | . 50 40 . 33 131 Shots Fired 164 | . 80 30 . 2 52 Gun 158 | . 76 30 . . 52 Cannon . | . . . . . . Launcher 6 | . 4 . . 2 . Special . | . . . . . . Kinetic 122 | . 76 30 . . 16 Thermal 36 | . . . . . 36 Explosive 6 | . 4 . . 2 . Electromagnetic . | . . . . . . Robot Hit Streak 16 | . 6 5 . . 16 Robot Miss Streak 3 | . 3 3 . 1 2 Penetration Max . | . . . . . . Secondary Targets 2 | . . 2 . . . Max Gunslinging Chain 1 | . . 1 . . . Shots Hit Robots 103 | . 45 16 . . 42 Core Hits 48 | . 24 4 . 5 15 Critical Kills . | . . . . . . Critical Parts Destroyed . | . . . . . . Critical Strikes 2 | . . . . . 2 Burn 2 | . . . . . 2 Melee Attacks . | . . . . . . Impact . | . . . . . . Slashing . | . . . . . . Piercing . | . . . . . . Sneak Attacks . | . . . . . . Combat Hostiles . | . . . . . . Follow-up Attacks . | . . . . . . Damage Inflicted 1734 | . 705 129 . 194 706 Guns 1209 | . 386 129 . . 694 Cannons . | . . . . . . Explosions 513 | . 319 . . 194 . Melee . | . . . . . . Ramming 12 | . . . . . 12 Kinetic 618 | . 386 129 . . 103 Thermal 591 | . . . . . 591 Explosive 513 | . 319 . . 194 . Electromagnetic . | . . . . . . Impact . | . . . . . . Slashing . | . . . . . . Piercing . | . . . . . . Highest Corruption . | . . . . . . Average Corruption . | . . . . . . Corruption Purged . | . . . . . . Corruption Blocked . | . . . . . . Overload Shots . | . . . . . . Overflow Damage 31 | . 31 . . . . Projectiles . | . . . . . . Explosions 31 | . 31 . . . . Melee . | . . . . . . Knockbacks . | . . . . . . Impact . | . . . . . . Kinetic . | . . . . . . Secondary . | . . . . . . Self-Inflicted Damage 70 | . 16 . . 52 2 Shots 4 | . 2 . . 2 . Rammed 10 | . . . . . 10 Targets Rammed 10 | . . . . . 10 Kicked . | . . . . . . Crushed . | . . . . . . Highest Temperature 342 | . 87 8 . 2 342 Average Temperature 72 | . 23 4 . 2 123 Received Heat Transfer 1032 | . 339 . . . 693 Effects 1 | . . . . . 1 Interference 1 | . . . . . 1 Siege Activations . | . . . . . . Robots Corrupted . | . . . . . . Combat Hostiles . | . . . . . . Parts Fried . | . . . . . . Impact Corruptions . | . . . . . . Robots Melted 1 | . . . . . 1 Combat Hostiles 1 | . . . . . 1 Parts Melted 2 | . . . . . 2 Heat Transferred 1258 | . . . . . 1258 Parts Sabotaged . | . . . . . . Parts Stolen . | . . . . . . Parts Stripped . | . . . . . . Power Chain Reactions . | . . . . . . Missiles Intercepted . | . . . . . . Alert | -11 -10 -10 -10 -9 -8 ------- Run | Scr Mat Min Exi Min Mat Peak Influence 428 | . 428 256 . 115 224 Initial 166 | . . 166 . . 44 Average 151 | . 221 200 . 50 76 Maximum Alert Level 2 | . 2 1 . . 1 Low Security (%) 68 | 100 47 47 . 100 96 Level 1 28 | . 44 52 . . 3 Level 2 2 | . 7 . . . . Level 3 . | . . . . . . Level 4 . | . . . . . . Level 5 . | . . . . . . High Security . | . . . . . . Max Security . | . . . . . . Squads Dispatched 9 | . 4 . . . 5 Investigation 4 | . 2 . . . 2 Extermination . | . . . . . . Reinforcement 4 | . 2 . . . 2 Assault . | . . . . . . Garrison 1 | . . . . . 1 Intercept . | . . . . . . Searches Triggered . | . . . . . . Construction Impeded . | . . . . . . Haulers Reinforced . | . . . . . . Active Scanning Responses . | . . . . . . Cargo Convoy Interrupts . | . . . . . . Stealth | -11 -10 -10 -10 -9 -8 --------- Run | Scr Mat Min Exi Min Mat Distress Signals 5 | . 1 . . . 4 Communications Jammed . | . . . . . . Distress Signals . | . . . . . . Times Spotted 47 | . 18 5 . 3 21 Peak Tracking Total 14 | . 8 3 . 3 14 Tactical Retreats 3 | . . 1 . . 2 Traps | -11 -10 -10 -10 -9 -8 ------- Run | Scr Mat Min Exi Min Mat Traps Triggered 1 | . 1 . . . . Indirectly . | . . . . . . Trap Hack Attempts . | . . . . . . Triggered . | . . . . . . Disarmed . | . . . . . . Reprogrammed . | . . . . . . Reused . | . . . . . . Traps Extracted . | . . . . . . Installed . | . . . . . . Triggered . | . . . . . . Machines | -11 -10 -10 -10 -9 -8 ---------- Run | Scr Mat Min Exi Min Mat Machines Disabled 1 | . 1 . . . . Max in Single Turn 1 | . 1 . . . . Machines Sabotaged 1 | . . . . . 1 Garrisons Compromised . | . . . . . . Overloaded Fab Kills . | . . . . . . Hacking | -11 -10 -10 -10 -9 -8 --------- Run | Scr Mat Min Exi Min Mat Machines Accessed 7 | . 2 1 1 . 3 Terminals 6 | . 2 1 . . 3 Fabricators . | . . . . . . Repair Stations . | . . . . . . Recycling Units . | . . . . . . Scanalyzers . | . . . . . . Garrison Access . | . . . . . . Total Hacks 12 | . 4 1 1 . 6 Successful 5 | . 1 1 1 . 2 Failed 7 | . 3 . . . 4 Catastrophic 1 | . 1 . . . . Database Lockouts . | . . . . . . Manual 11 | . 4 . 1 . 6 Terminals 11 | . 4 1 . . 6 Fabricators . | . . . . . . Repair Stations . | . . . . . . Recycling Units . | . . . . . . Scanalyzers . | . . . . . . Garrison Access . | . . . . . . Terminal Hacks 3 | . 1 1 1 . . Branch Access Points 1 | . 1 . . . . Alert Level 1 | . . 1 . . . EX-Prototype ID Bank 1 | . . . 1 . . Fabricator Hacks . | . . . . . . Repair Station Hacks . | . . . . . . Recycling Unit Hacks . | . . . . . . Scanalyzer . | . . . . . . Garrison Access Hacks . | . . . . . . Unauthorized Hacks 2 | . . . . . 2 Terminals 2 | . . . . . 2 Sabotage 2 | . . . . . 2 Fabricators . | . . . . . . Repair Stations . | . . . . . . Recycling Units . | . . . . . . Scanalyzers . | . . . . . . Garrison Access . | . . . . . . Data Cores Recovered . | . . . . . . Used . | . . . . . . Hacking Detections 4 | . 2 . . . 2 Full Trace Events 1 | . 1 . . . . Feedback Events . | . . . . . . Feedback Blocked . | . . . . . . Robot Schematics Acquired . | . . . . . . Robots Built . | . . . . . . Authchips . | . . . . . . Time . | . . . . . . Total Robot Build Rating . | . . . . . . Part Schematics Acquired . | . . . . . . Parts Built . | . . . . . . Authchips . | . . . . . . Time . | . . . . . . Total Part Build Rating . | . . . . . . Parts Repaired . | . . . . . . Time . | . . . . . . Parts Recycled . | . . . . . . Recycled Matter . | . . . . . . Retrieved Matter . | . . . . . . Retrieved Components . | . . . . . . Parts Scanalyzed . | . . . . . . Part Schematics Acquired . | . . . . . . Parts Damaged . | . . . . . . Bothacking | -11 -10 -10 -10 -9 -8 ------------ Run | Scr Mat Min Exi Min Mat Used RIF Installer . | . . . . . . Robots Hacked . | . . . . . . Non-combat . | . . . . . . Combat . | . . . . . . Robot Hacks Applied . | . . . . . . Relay Couplers Released . | . . . . . . Fabnet Peak Effective % . | . . . . . . Robots Rewired . | . . . . . . Allies Hacked . | . . . . . . Hacks Repelled . | . . . . . . Allies | -11 -10 -10 -10 -9 -8 -------- Run | Scr Mat Min Exi Min Mat Total Allies 2 | . . 2 . . . Largest Group 2 | . . 2 . . . Highest-Rated Group 42 | . . 42 . . . Highest-Rated Ally 31 | . . 31 . . . Total Orders 2 | . . . . 2 . EXPLORE 1 | . . . . 1 . RETURN 1 | . . . . 1 . Ally Attacks 4 | . . 4 . . . Total Damage 65 | . . 65 . . . Kills . | . . . . . . Allies Corrupted . | . . . . . . Allies Melted . | . . . . . . Intel | -11 -10 -10 -10 -9 -8 ------- Run | Scr Mat Min Exi Min Mat Robot Analysis Total . | . . . . . . Derelict Logs Recovered 2 | . . 1 . 1 . Drone Launches 1 | . . . . 1 . Drone Recoveries 1 | . . . . 1 . Exploration | -11 -10 -10 -10 -9 -8 ------------- Run | Scr Mat Min Exi Min Mat Turns Passed 1318 | 4 373 322 94 83 442 Spaces Moved 1762 | 4 382 638 246 121 371 Core 61 | . . . . . 61 Treads 2 | . . . . . 2 Legs 89 | 4 70 . . . 15 Wheels 179 | . 24 . . . 155 Hover . | . . . . . . Flight 1431 | . 288 638 246 121 138 Fastest Speed 32 | 120 37 37 37 37 32 Average Speed 48 | 120 56 37 37 38 67 Slowest Speed 200 | 120 120 37 37 117 200 Overloaded Moves . | . . . . . . Propulsion Burnouts . | . . . . . . Robots Hopped 12 | . 2 9 . . 1 Cave-ins Triggered . | . . . . . . Exploration Rate (%) 54 | 2 65 86 61 85 29 Regions Visited 5 Branch Regions 3 Pre-discovered Areas 1 | . . 1 . . . Known Exits Taken 4 | . 1 1 1 1 . Unknown Exits Taken 1 | 1 . . . . . Scrap Searched 3 | . . 1 . 2 . Spaces Dug . | . . . . . . Terrain Destroyed 34 | . 13 . . 21 . Melee . | . . . . . . Projectile . | . . . . . . AOE 34 | . 13 . . 21 . Terrain Rammed . | . . . . . . Walls Destroyed . | . . . . . . Machines Disabled . | . . . . . . Actions | -11 -10 -10 -10 -9 -8 --------- Run | Scr Mat Min Exi Min Mat Total 2083 | 3 475 692 249 152 512 Wait 132 | . 17 31 . 19 65 Move 1736 | 3 377 622 245 120 369 Hop 9 | . 2 6 . . 1 Pick Up 31 | . 11 5 2 . 13 Fast Attach 4 | . 3 . . 1 . Attach 19 | . 5 1 . . 13 Detach . | . . . . . . Swap 19 | . 6 5 . 7 1 Drop 30 | . 12 7 2 3 6 Fire 93 | . 42 15 . 2 34 Melee . | . . . . . . Ram 5 | . . . . . 5 Kick . | . . . . . . Crush 5 | . . . . . 5 Escape Stasis . | . . . . . . Rewire . | . . . . . . Trap . | . . . . . . Miscellaneous . | . . . . . . Route ------- -11/Scrapyard -10/Materials (discovered 3 exits: *Mat / *Min x2) -10/Mines (discovered 3 exits: *Mat x2 / *Exi) -10/Exiles (discovered 2 exits: *Min x2) -9/Mines -8/Materials History --------- Turn | Location | Event 1 | -11/Scrapyard | Discovered new exit (range 3) 5 | -11/Scrapyard | Entered Materials 150 | -10/Materials | Discovered new exit (range 15) 163 | -10/Materials | Discovered new exit (range 6) 303 | -10/Materials | Build established: Mutant 309 | -10/Materials | Discovered new exit (range 15) 361 | -10/Materials | Identified exit to Mines 378 | -10/Materials | Entered Mines 395 | -10/Mines | Learned location of Zion (-7) 406 | -10/Mines | Discovered new exit (range 7) 408 | -10/Mines | Identified exit to Materials 529 | -10/Mines | Core integrity fell below 50% 666 | -10/Mines | Received a Rocket Launcher from a helpful Derelict 677 | -10/Mines | Discovered exit to Materials (range 9) 698 | -10/Mines | Deemed a non-threat by the Exiles lab entrance 698 | -10/Mines | Discovered new exit (range 5) 699 | -10/Mines | Identified exit to Exiles 700 | -10/Mines | Entered Exiles 706 | -10/Exiles | Discovered new exit (range 15) 709 | -10/Exiles | Met 8R-AWN 716 | -10/Exiles | Met EX-HEX 726 | -10/Exiles | Met EX-BIN 730 | -10/Exiles | Aligned with FarCom system 731 | -10/Exiles | Given EX-Vault access code 739 | -10/Exiles | Opened EX-Vault 743 | -10/Exiles | Found Supersonic Drone Bay 752 | -10/Exiles | Warned to stay clear of 0b10 Research branches 762 | -10/Exiles | Met EX-DEC 790 | -10/Exiles | Discovered new exit (range 14) 794 | -10/Exiles | Identified exit to Mines 794 | -10/Exiles | Left Exiles lab with Supersonic Drone Bay 794 | -10/Exiles | Entered Mines 802 | -9/Mines | Discovered new exit (range 41) 877 | -9/Mines | Identified exit to Materials 877 | -9/Mines | Entered Materials 877 | -8/Materials | Evolved 4 slots: Propulsion x1, Utility x3 1026 | -8/Materials | Lost 5 parts (1p2n1u1w) 1244 | -8/Materials | Garrison activated, responded to threat 1257 | -8/Materials | Build established: Scavenger-Mutant 1262 | -8/Materials | Core integrity fell below 50% 1285 | -8/Materials | Core integrity fell below 20% 1304 | -8/Materials | Lost 4 parts (1p1n1u1w) 1319 | -8/Materials | Destroyed by S-10 Pest with Light Assault Rifle Last Messages --------------- 01274_ Terminal disabled. 01275_ K-01 Serf collects debris. 01276_ R-06 Scavenger collects Arm. Wheel. 01277_ R-06 Scavenger collects Beamcaster. 01277_ Slammed into G-47 Trooper. 01277_ Destabilizing: Core damaged (-16). 01278_ Slammed into G-47 Trooper. 01279_ R-06 Scavenger collects Sml. Storage Unit. 01279_ Slammed into G-47 Trooper. 01282_ Slammed into R-06 Scavenger. 01305_ O-16 Technician: "IFF HANDSHAKE FAILED. SECURING TERMINAL." 01305_ Connecting with Terminal... >>Force(Sabotage) SYSTEM_VULNERABLE[Fusion Modulator] NETWORK_OVERLOAD_FAIL 01305_ ALERT: Suspicious activity at Terminal M003. Dispatching Investigation squad. 01311_ Slammed into S-10 Pest. 01313_ Imp. Heat Sink destroyed. 01315_ Slammed into S-10 Pest. Map ----- +----------------------------------------------------+ | | | ?????????????????????????????????????????????????? | | ?????????????????????????????????????????????????? | | ?????????????????????????????????????????????????? | | ?????????????????????????????????????????????????? | | ?????????????????????????????????????????????????? | | ?????????????????????????????????????????????????? | | ?????????????????????????????????????????????????? | | ?????????????????????????????????????????????????? | | ?????????????????????????????????????????????????? | | ?????????????????????????????????????????????????? | | ????????????????????????????Y ???????????????????? | | ???????????????????????????? ???????????????????? | | ???????????????????????????? ???????????????????? | | ????????????????????????????w ???????????????????? | | ????????????????????????####/####????????????????? | | ??? ??????????????????# *#????????????????? | | ??# ??????????????????# #????????????????? | | ??# ??????????????????# ! #????????????????? | | ??# ??????????????????# +???? ??????????? | | ??# #??????????######## #?? ?????????? | | ??# #??????????# #* / # #????????? | | ??# #??????????# "" # ! s ?????????? | | ??# #??????????# T" s% #????????????????? | | ??# #??????????#= "" #% ] #????????????????? | | ??# #??????????# #@ #????????????????? | | ??# ############ #s #????????????????? | | ??# # ######/##########????????????????? | | ??# # g +gg #?????????????? | | ??# # g g###### ##+#???????????????????? | | ??# / """ """ #????# #??????????????????????? | | ??# # """ """ #????# #??????????????????????? | | ### # """ """ #????# #??????????????????????? | | # # #????# #??????????????????????? | | # # #????# #??????????????????????? | | # ###########????#+##+#??????????????????????? | | # #??????????????????????????????????????????? | | + #??????????????????????????????????????????? | | # #??????????????????????????????????????????? | | # #??????????????????????????????????????????? | | # #??????????????????????????????????????????? | | # #??????????????????????????????????????????? | | /## #??????????????????????????????????????????? | | #??????????????????????????????????????????? | | #########??????????????????????????????????? | | ?????????????????????????????????? | | ?????????????????????????????????? | | ?????????????????????????????????? | | ########??????????????????????????????????? | | #?????????????????????????????????????????? | +----------------------------------------------------+ Best States ------------- Heat Dissipation 45 Energy Generation 14 Energy Capacity 160 Matter Stores 300 Matter Capacity 300 Sight Range 16 Robot Scan Range 14 Terrain Scan Density 10 Armor Coverage 150 Core Shielding 20 Utility Shielding 33 Evasion (%) 63 Recoil Reduction 1 Offensive Hacking 10 Item Schematics ----------------- None Robot Schematics ------------------ None Fabricated ------------ Nothing Alien Tech Used ----------------- None Achievements -------------- None Challenges ------------ None Game ------ Seed DimensionalDynamicGenerator Manual? 0 Play Time 00:26:59 Cumulative 90.3 hours Start 2022.04.22 @ 23:55:34 End 2022.04.23 @ 00:20:40 Sessions 1 Manual Loads 0 Difficulty Rogue Special Mode None Game No. 116 Rogue 116 Adventurer 0 Explorer 0 Win Type - Total 0 Types 0/0/0/0/0/0/0/0/0 Lore% 52 Gallery% 47 Achievement% 42 Wizard Run 0 Options --------- ASCII 1 Keyboard 0 Movement Vi Keybinds 0 Fullscreen 1 Font 18/SmallcapsGlow Map View 76x50 Tactical HUD 1 Map Filters NONE Filters NONE Steam 1 RUN: 85699dca-08c7-4e37-94e3-b8d838ad0a64